Cogmind - Beta 13 @@@ ROGUE MODE // 2024.04.20 @ 22:09:50 Player: FlyingLemon Result: Destroyed by Y-45 Defender with Heavy Assault Rifle Performance ------------- Evolutions (2) 1000 Regions Visited (4) 800 Robots Destroyed (9) 45 Value Destroyed (324) 324 Prototype IDs (3) 60 Alien Tech Used (0) 0 Bonus (0) 0 TOTAL SCORE: 2229 Bonus ------- None Cogmind --------- Core Integrity 0/550 Matter 300/300 Energy 98/100 System Corruption 0% Temperature Cool (9) Movement Core (50) Location -8/Storage Parts ------- > --- POWER (2) -------- (None) > --- PROPULSION (4) --- (None) > --- UTILITY (3) ------ (None) > --- WEAPON (2) ------- (None) > --- INVENTORY (5) ---- Improved Signal Interpreter Terrain Scan Processor Scrap Shield Fragment (45) Scrap Shield Fragment (24) Peak State ------------ > --- POWER ------------ Subdweller Power Source Light Nuclear Core > --- PROPULSION ------- Spiked Treads Aluminum Leg Aluminum Leg Carbon-fiber Leg > --- UTILITY ---------- Small Storage Unit Hacking Suite System Shield > --- WEAPON ----------- EM Pulse Gun Heavy Particle Gun > --- INVENTORY -------- Ion Engine Improved Hover Unit Improved Hover Unit Terrain Scan Processor Scrap Shield Fragment Scrap Shield Fragment [Rating: 25] Favorites ----------- Power Subdweller Power Source Engine Subdweller Power Source Power Core Light Nuclear Core Propulsion Light Treads Treads Light Treads Leg Aluminum Leg Wheel Compact Wheel Hover Unit Improved Hover Unit Utility Small Storage Unit Device Structural Scanner Storage Small Storage Unit Hackware System Shield Weapon Light Assault Rifle Energy Gun Medium Laser Energy Cannon Subdweller Beam Cannon Ballistic Gun Light Assault Rifle Ballistic Cannon Battle Cannon Build | -11 -10 -10 -8 -8 ------- Run | Yrd Mat Sub Mat Sto Slots Evolved 4 | . . . 4 . Power 1 | . . . 1 . Propulsion 2 | . . . 2 . Utility 1 | . . . 1 . Weapon . | . . . . . Parts Attached 35 | 6 2 8 11 8 Power 7 | 1 1 2 2 1 Engine 6 | 1 1 2 1 1 Core 1 | . . . 1 . Reactor . | . . . . . Propulsion 11 | 2 . 3 4 2 Treads 3 | 2 . 1 . . Leg 4 | . . . 4 . Wheel 2 | . . 2 . . Hover 2 | . . . . 2 Flight . | . . . . . Utility 7 | 1 1 1 3 1 Device 3 | . 1 1 1 . Storage 1 | 1 . . . . Processor . | . . . . . Hackware 3 | . . . 2 1 Protection . | . . . . . Artifact . | . . . . . Weapon 10 | 2 . 2 2 4 Energy Gun 6 | 1 . . 2 3 Energy Cannon 2 | . . 1 . 1 Ballistic Gun 1 | 1 . . . . Ballistic Cannon 1 | . . 1 . . Launcher . | . . . . . Special Weapon . | . . . . . Impact Weapon . | . . . . . Slashing Weapon . | . . . . . Piercing Weapon . | . . . . . Special Melee Weapon . | . . . . . Unidentified Prototypes 3 | . . . 1 2 Parts Lost 21 | . . 6 3 12 Power 4 | . . 2 . 2 Propulsion 7 | . . 1 1 5 Utility 5 | . . 1 1 3 Weapon 5 | . . 2 1 2 Highest Loss Streak 12 | . . 3 2 12 To Critical Strikes . | . . . . . Average Slot Usage (%) 91 | . 99 94 87 63 Engine 13 | . 14 13 14 6 Core 1 | . . . 3 5 Treads 14 | . 28 12 8 . Leg 6 | . . . 26 19 Wheel 6 | . . 12 . . Device 11 | . 13 13 11 . Storage 12 | . 14 14 9 9 Hackware 1 | . . . 3 10 Energy Gun 7 | . 14 1 10 12 Energy Cannon 1 | . . 2 . . Ballistic Gun 9 | . 14 13 . . Ballistic Cannon 4 | . . 9 . . Naked Turns 3 | . . . . 3 Heaviest Build 22 | 11 12 20 22 22 Greatest Support 40 | 40 40 40 35 35 Greatest Overweight (x) 1 | . . 1 . 1 Average Overweight (x) . | . . . . . Largest Inventory Capacity 8 | 8 8 8 8 8 Average Capacity 7 | 7 8 8 8 7 Most Carried 8 | 6 8 8 8 6 Average Carried 6 | 3 7 7 4 5 Final Capacity 8 | 8 8 8 8 5 Final Carried 8 | 6 8 8 6 4 Class Distribution -------------------- 95% | Mutant 4% | Hacker-Mutant Dominant Class ---------------- Mutant | -10/Materials Mutant | -10/Subcaves Mutant | -8/Materials Hacker-Mutant | -8/Storage Resources | -11 -10 -10 -8 -8 ----------- Run | Yrd Mat Sub Mat Sto Matter Collected 501 | 147 144 140 30 40 Remotely . | . . . . . Salvage Created 329 | . 139 46 30 114 Parts 22 | . 6 5 4 7 Haulers Intercepted . | . . . . . Recyclers Shooed 1 | . . . 1 . Parts Field Recycled . | . . . . . Retrieved Matter . | . . . . . Parts Self-Destructed 7 | . . 7 . . Prevented . | . . . . . Kills | -11 -10 -10 -8 -8 ------- Run | Yrd Mat Sub Mat Sto Combat Hostiles Destroyed 7 | . 3 2 . 2 Guns 6 | . 3 1 . 2 Cannons 1 | . . 1 . . Classes Destroyed 6 | . 2 1 1 2 Builder 1 | . 1 . . . Operator 1 | . . . 1 . Grunt 3 | . 3 . . . Sentry 1 | . . . . 1 Hunter 1 | . . . . 1 Subdweller 2 | . . 2 . . Best Kill Streak 2 | . 2 1 1 2 Combat Bots Only 2 | . 1 1 . 2 Max Kills in Single Turn 1 | . 1 1 1 1 Gunslinging . | . . . . . Exploded . | . . . . . Melee . | . . . . . Uniques/NPCs Destroyed . | . . . . . Combat | -11 -10 -10 -8 -8 -------- Run | Yrd Mat Sub Mat Sto Hostile Shots Fired 233 | . 37 50 50 96 Missed 78 | . 13 18 18 29 Damage Taken 2652 | . 334 690 499 1129 Core 710 | . 69 82 88 471 Absorbed by Shields . | . . . . . Core Remaining (%) 69 | 100 . 39 . . Volleys Fired 52 | . 21 20 4 7 Largest 2 | . 2 2 2 2 Hottest 116 | . 70 100 95 116 Shots Fired 101 | . 42 38 7 14 Gun 81 | . 42 18 7 14 Cannon 20 | . . 20 . . Launcher . | . . . . . Special . | . . . . . Kinetic 54 | . 21 33 . . Thermal 43 | . 21 5 3 14 Explosive . | . . . . . Electromagnetic 4 | . . . 4 . Robot Hit Streak 35 | . 6 34 35 5 Robot Miss Streak 3 | . 3 2 1 1 Penetration Max . | . . . . . Secondary Targets . | . . . . . Shots Hit Robots 77 | . 27 35 5 10 Core Hits 28 | . 8 9 5 6 Critical Kills 1 | . . 1 . . Critical Parts Destroyed . | . . . . . Critical Strikes 4 | . 2 1 . 1 Burn 3 | . 2 . . 1 Destroy 1 | . . 1 . . Melee Attacks . | . . . . . Impact . | . . . . . Slashing . | . . . . . Piercing . | . . . . . Sneak Attacks . | . . . . . Combat Hostiles . | . . . . . Follow-up Attacks . | . . . . . Damage Inflicted 1236 | . 328 535 148 225 Guns 735 | . 328 129 85 193 Cannons 406 | . . 406 . . Explosions . | . . . . . Melee . | . . . . . Ramming 95 | . . . 63 32 Kinetic 507 | . 103 404 . . Thermal 589 | . 225 131 40 193 Explosive . | . . . . . Electromagnetic 45 | . . . 45 . Impact . | . . . . . Slashing . | . . . . . Piercing . | . . . . . Highest Corruption . | . . . . . Average Corruption . | . . . . . Corruption Purged . | . . . . . Corruption Blocked . | . . . . . Overload Shots . | . . . . . Overflow Damage . | . . . . . Projectiles . | . . . . . Explosions . | . . . . . Melee . | . . . . . Knockbacks 2 | . . 2 . . Impact . | . . . . . Kinetic 2 | . . 2 . . Secondary . | . . . . . Self-Inflicted Damage 12 | . . . . 12 Shots . | . . . . . Rammed 5 | . . . . 5 Targets Rammed 27 | . . . 18 9 Kicked 22 | . . . 18 4 Crushed . | . . . . . Highest Temperature 438 | . 229 20 90 438 Average Temperature 125 | . 105 15 48 198 Received Heat Transfer 867 | . 198 84 90 495 Effects 5 | . 2 . . 3 Shutdowns 1 | . . . . 1 Energy Bleed 2 | . . . . 2 Interference 2 | . 2 . . . Siege Activations . | . . . . . Robots Corrupted . | . . . . . Combat Hostiles . | . . . . . Parts Fried . | . . . . . Impact Corruptions . | . . . . . Robots Melted . | . . . . . Combat Hostiles . | . . . . . Parts Melted 2 | . 1 . . 1 Heat Transferred 1517 | . 814 185 74 444 Parts Sabotaged . | . . . . . Parts Stolen . | . . . . . Parts Stripped . | . . . . . Power Chain Reactions . | . . . . . Alert | -11 -10 -10 -8 -8 ------- Run | Yrd Mat Sub Mat Sto Peak Influence 130 | . 105 . 80 130 Initial 27 | . . . . 27 Average 59 | . 77 . 50 66 Maximum Alert Level . | . . . . . Low Security (%) 100 | 100 100 . 100 100 Level 1 . | . . . . . Level 2 . | . . . . . Level 3 . | . . . . . Level 4 . | . . . . . Level 5 . | . . . . . High Security . | . . . . . Max Security . | . . . . . Squads Dispatched 3 | . 1 . 1 1 Investigation 1 | . . . . 1 Extermination . | . . . . . Reinforcement 2 | . 1 . 1 . Assault . | . . . . . Garrison . | . . . . . Intercept . | . . . . . Searches Triggered . | . . . . . Construction Impeded . | . . . . . Haulers Reinforced . | . . . . . Active Scanning Responses . | . . . . . Cargo Convoy Interrupts . | . . . . . Stealth | -11 -10 -10 -8 -8 --------- Run | Yrd Mat Sub Mat Sto Distress Signals 2 | . . . 2 . Communications Jammed . | . . . . . Distress Signals . | . . . . . Times Spotted 40 | . 10 6 11 13 Peak Tracking Total 11 | . 4 3 7 11 Tactical Retreats 3 | . . . 2 1 Traps | -11 -10 -10 -8 -8 ------- Run | Yrd Mat Sub Mat Sto Traps Triggered 4 | . . . 1 3 Indirectly . | . . . . . Trap Hack Attempts . | . . . . . Triggered . | . . . . . Disarmed . | . . . . . Reprogrammed . | . . . . . Reused . | . . . . . Traps Extracted . | . . . . . Installed . | . . . . . Triggered . | . . . . . Machines | -11 -10 -10 -8 -8 ---------- Run | Yrd Mat Sub Mat Sto Machines Disabled . | . . . . . Max in Single Turn . | . . . . . Machines Repaired . | . . . . . Machines Dismantled . | . . . . . Machines Sabotaged . | . . . . . Overloaded Fab Kills . | . . . . . Hacking | -11 -10 -10 -8 -8 --------- Run | Yrd Mat Sub Mat Sto Machines Accessed 4 | . 1 . 1 2 Terminals 2 | . . . 1 1 Fabricators . | . . . . . Repair Stations . | . . . . . Recycling Units 2 | . 1 . . 1 Scanalyzers . | . . . . . Garrison Access . | . . . . . Total Hacks 10 | . 5 . 1 4 Successful 6 | . 2 . 1 3 Failed 4 | . 3 . . 1 Catastrophic . | . . . . . Database Lockouts . | . . . . . Manual 1 | . . . 1 . Terminals 3 | . . . 1 2 Fabricators . | . . . . . Repair Stations . | . . . . . Recycling Units 7 | . 5 . . 2 Scanalyzers . | . . . . . Garrison Access . | . . . . . Terminal Hacks 2 | . . . 1 1 Open Door 1 | . . . . 1 Registered Components 1 | . . . 1 . Fabricator Hacks . | . . . . . Repair Station Hacks . | . . . . . Recycling Unit Hacks 4 | . 2 . . 2 Report Inventory 2 | . 1 . . 1 Retrieve Components 2 | . 1 . . 1 Scanalyzer . | . . . . . Garrison Access Hacks . | . . . . . Unauthorized Hacks . | . . . . . Terminals . | . . . . . Fabricators . | . . . . . Repair Stations . | . . . . . Recycling Units . | . . . . . Scanalyzers . | . . . . . Garrison Access . | . . . . . Data Cores Recovered 1 | . . . 1 . Used . | . . . . . Hacking Detections 2 | . . . 1 1 Full Trace Events . | . . . . . Feedback Events . | . . . . . Feedback Blocked . | . . . . . Robot Schematics Acquired . | . . . . . Robots Built . | . . . . . Authchips . | . . . . . Time . | . . . . . Total Robot Build Rating . | . . . . . Part Schematics Acquired . | . . . . . Parts Built . | . . . . . Authchips . | . . . . . Time . | . . . . . Total Part Build Rating . | . . . . . Parts Repaired . | . . . . . Time . | . . . . . Parts Recycled . | . . . . . Recycled Matter . | . . . . . Retrieved Matter . | . . . . . Retrieved Components 6 | . 4 . . 2 Parts Scanalyzed . | . . . . . Part Schematics Acquired . | . . . . . Parts Damaged . | . . . . . Bothacking | -11 -10 -10 -8 -8 ------------ Run | Yrd Mat Sub Mat Sto Used RIF Installer . | . . . . . Robots Hacked . | . . . . . Non-combat . | . . . . . Combat . | . . . . . Robot Hacks Applied . | . . . . . Relay Couplers Released . | . . . . . Fabnet Peak Effective % . | . . . . . Robots Rewired . | . . . . . Allies Hacked . | . . . . . Hacks Repelled . | . . . . . Allies | -11 -10 -10 -8 -8 -------- Run | Yrd Mat Sub Mat Sto Total Allies . | . . . . . Largest Group . | . . . . . Highest-Rated Group . | . . . . . Highest-Rated Ally . | . . . . . Total Orders . | . . . . . Ally Attacks . | . . . . . Total Damage . | . . . . . Kills . | . . . . . Allies Corrupted . | . . . . . Allies Melted . | . . . . . Intel | -11 -10 -10 -8 -8 ------- Run | Yrd Mat Sub Mat Sto Robot Analysis Total . | . . . . . Derelict Logs Recovered . | . . . . . Drone Launches . | . . . . . Drone Recoveries . | . . . . . Exploration | -11 -10 -10 -8 -8 ------------- Run | Yrd Mat Sub Mat Sto Turns Passed 1664 | 84 393 729 308 150 Spaces Moved 1087 | 45 201 534 215 92 Core 13 | 2 . . . 11 Treads 394 | 43 201 150 . . Legs 290 | . . . 215 75 Wheels 384 | . . 384 . . Hover 6 | . . . . 6 Flight . | . . . . . Fastest Speed 50 | 50 160 100 120 50 Average Speed 128 | 155 160 121 120 110 Slowest Speed 160 | 160 160 160 120 120 Overloaded Moves . | . . . . . Propulsion Burnouts . | . . . . . Robots Hopped . | . . . . . Cave-ins Triggered . | . . . . . Exploration Rate (%) 28 | 5 34 48 31 24 Regions Visited 4 Branch Regions 2 Pre-discovered Areas 1 | . . 1 . . Known Exits Taken . | . . . . . Unknown Exits Taken 4 | 1 1 1 1 . Scrap Searched . | . . . . . Spaces Dug . | . . . . . Terrain Destroyed 1 | . . 1 . . Melee . | . . . . . Projectile 1 | . . 1 . . AOE . | . . . . . Terrain Rammed . | . . . . . Walls Destroyed . | . . . . . Machines Disabled . | . . . . . Actions | -11 -10 -10 -8 -8 --------- Run | Yrd Mat Sub Mat Sto Total 1250 | 56 234 581 254 125 Wait 25 | . 8 13 . 4 Move 1083 | 44 200 533 214 92 Hop . | . . . . . Pick Up 15 | 6 2 2 4 1 Fast Attach 20 | 6 1 7 1 5 Attach 12 | . . 1 8 3 Detach . | . . . . . Swap 3 | . 1 . 2 . Drop 13 | . 1 5 3 4 Fire 52 | . 21 20 4 7 Melee . | . . . . . Ram 5 | . . . . 5 Kick 22 | . . . 18 4 Crush . | . . . . . Escape Stasis . | . . . . . Rewire . | . . . . . Trap . | . . . . . Miscellaneous . | . . . . . Route ------- -11/Scrapyard -10/Materials (discovered 2 exits: [*Mat] / [*Sub]) -10/Subcaves (discovered 2 exits: *Mat x2) -8/Materials -8/Storage History --------- Turn | Location | Event 12 | -11/Scrapyard | Discovered new exit (range 15) 85 | -11/Scrapyard | Entered Materials 288 | -10/Materials | Discovered new exit (range 5) 317 | -10/Materials | Build established: Mutant 390 | -10/Materials | Discovered new exit (range 9) 478 | -10/Materials | Entered Subcaves 535 | -10/Subcaves | Shifting Twisted Machinery released Battle Cannon 578 | -10/Subcaves | Disturbed a concealed Subdweller 664 | -10/Subcaves | Learned location of Zion (-7) 664 | -10/Subcaves | Met a Zionite searching for "candidates" 772 | -10/Subcaves | Lost 3 parts (1p1n1u) 792 | -10/Subcaves | Discovered new exit (range 10) 879 | -10/Subcaves | A swath of the cavern ceiling suddenly collapsed 927 | -10/Subcaves | A swath of the cavern ceiling suddenly collapsed 1167 | -10/Subcaves | Core integrity fell below 50% 1198 | -10/Subcaves | Discovered new exit (range 8) 1207 | -10/Subcaves | Entered Materials 1207 | -8/Materials | Evolved 4 slots: Power x1, Propulsion x2, Utility x1 1510 | -8/Materials | Discovered new exit (range 5) 1515 | -8/Materials | Entered Storage 1656 | -8/Storage | Core integrity fell below 50% 1663 | -8/Storage | Core integrity fell below 20% 1665 | -8/Storage | Destroyed by Y-45 Defender with Heavy Assault Rifle Last Messages --------------- Carbon-fiber Leg destroyed. Ion Engine destroyed. Acquired 40 matter. K-01 Serf collects debris. Hvy. Particle Gun destroyed. Triggered Alarm Trap. An alarm sounds. ALERT: Alarm triggered, dispatching investigation squad. Adv. Beam Rifle destroyed. Aluminum Leg destroyed. A-02 Transporter destroyed. Slammed into G-47 Trooper. Imp. Hover Unit destroyed. Slammed into G-47 Trooper. Hacking Suite destroyed. Slammed into G-47 Trooper. Critical hit (Burn: +37). Slammed into G-47 Trooper. Sml. Storage Unit destroyed. Slammed into Y-45 Defender. Map ----- +----------------------------------------------------+ | ??????? """ # =#= #?????????????? | | ????""" """ # # #?????????????? | | ???#"G / # #?????????????? | | ????""" # %" #?????????????? | | ????### ! # "%# #?????????????? | | ??????# !! ?# "##########?????????????? | | ??????# ! ?# #??????????????????????? | | ??????#######??# #??????????????????????? | | ???????????????# #??????????????????????? | | ??????????###### #??????????????????????? | | ??????????# ## ##?????????????????????? | | ??????????# +?????????????????????? | | ??????????# ### ###?????????????????????? | | ??????????## ##?# #???????????????????????? | | ??????######+#### #???????????????????????? | | ??????# ## #???????????????????????? | | ??????# """ ## ####????????????????????? | | ??????# """ # !!###########??????????? | | ??????# """ # Yg! #??????????? | | ????#"" ; !gg #??????????? | | ????#"Y """ # Y%% #??????????? | | ????#"" """ # YY ###########??????????? | | ?????## """ ## Y##????????????????????? | | ??????? ## #?????????????????????? | | ??????########### #?????????????????????? | | ????????????????# @ #?????????????????????? | | ????????????????# #?????????????????????? | | ????????????????# #?????????????????????? | | ????????????????# #?????????????????????? | | ????????????????# #?????????????????????? | | ????????????????# #?????????????????????? | | ????????????????# #?????????????????????? | | ???????????????? ?????????????????????? | | ???????????????? ?????????????????????? | | ???????????????? ?????????????????????? | | ???????????????? ?????????????????????? | | ???????????????# #????????????????????? | | ???????????????#######????????????????????? | | ??????????????????????????????????????????? | | ??????????????????????????????????????????? | | ??????????????????????????????????????????? | | ??????????????????????????????????????????? | | ??????????????????????????????????????????? | | ??????????????????????????????????????????? | | ??????????????????????????????????????????? | | ??????????????????????????????????????????? | | ??????????????????????????????????????????? | | ??????????????????????????????????????????? | | ??????????????????????????????????????????? | | ??????????????????????????????????????????? | +----------------------------------------------------+ Best States ------------- Heat Dissipation 31 Coolant Potential 50 Energy Generation 24 Energy Capacity 350 Matter Stores 300 Matter Capacity 300 Sight Range 16 Terrain Scan Density 10 Evasion (%) 55 Recoil Reduction 2 Offensive Hacking 10 Defensive Hacking 10 Item Schematics ----------------- None Robot Schematics ------------------ None Fabricated ------------ Nothing Alien Tech Used ----------------- None Achievements -------------- None Challenges ------------ None Game ------ Seed WarpDerelictHumpback Manual? 0 Play Time 00:16:24 Cumulative 17.2 hours Start 2024.04.20 @ 21:55:42 End 2024.04.20 @ 22:09:50 Sessions 1 Manual Loads 0 Difficulty Rogue Special Mode None Game No. 26 Rogue 26 Adventurer 0 Explorer 0 Win Type - Total 0 Types 0/0/0/0/0/0/0/0/0 Lore% 22 Gallery% 28 Achievement% 21 Wizard Run 0 Options --------- Layout 0 ASCII 0 Keyboard 0 Movement Numpad Keybinds 0 Fullscreen 2 Font 24/Smallcaps Map View 76x50 Zoom Use 0% Tactical HUD 0 Map Filters NONE Filters NONE Steam 1 RUN: 5a5fadbd-498b-4afa-8cfe-4560ba152369